[Event "Late-Titled-Tuesday-Blitz-February-13-2024"]
[Site "Chess.com"]
[Date "2024.02.13"]
[Round "2"]
[White "tarno17"]
[Black "FrenchMonster2002"]
[Result "0-1"]
[WhiteElo "2121"]
[BlackElo "2450"]
[TimeControl "180+1"]
[EndTime "14:18:41 PST"]
[Termination "FrenchMonster2002 won by resignation"]

1. e4 {[%clk 0:03:00.9]} 1... e5 {[%clk 0:02:57]} 2. Nf3 {[%clk 0:02:59.8]} 2...
Nf6 {[%clk 0:02:57.7]} 3. Nxe5 {[%clk 0:02:59.2]} 3... Nxe4 {[%clk 0:02:54.9]}
4. d3 {[%clk 0:02:59.1]} 4... Nf6 {[%clk 0:02:54.1]} 5. d4 {[%clk 0:02:59.5]}
5... d6 {[%clk 0:02:45.8]} 6. Nf3 {[%clk 0:02:59.9]} 6... d5 {[%clk 0:02:46.4]}
7. Bd3 {[%clk 0:02:59.6]} 7... Bd6 {[%clk 0:02:46.8]} 8. O-O {[%clk 0:02:59.8]}
8... O-O {[%clk 0:02:47.1]} 9. h3 {[%clk 0:02:59.9]} 9... h6 {[%clk 0:02:47.4]}
10. Re1 {[%clk 0:02:58.2]} 10... c6 {[%clk 0:02:43.6]} 11. Nbd2 {[%clk
0:02:45.5]} 11... a5 {[%clk 0:02:30.2]} 12. c4 {[%clk 0:02:30.9]} 12... Na6
{[%clk 0:02:26.2]} 13. c5 {[%clk 0:02:26.9]} 13... Bb8 {[%clk 0:02:26.1]} 14. a3
{[%clk 0:02:26.2]} 14... Nc7 {[%clk 0:02:24.9]} 15. Nf1 {[%clk 0:02:24.7]} 15...
Re8 {[%clk 0:02:22.1]} 16. Bf4 {[%clk 0:02:05.2]} 16... Ne6 {[%clk 0:02:20.3]}
17. Bxb8 {[%clk 0:02:04]} 17... Rxb8 {[%clk 0:02:21.2]} 18. Ng3 {[%clk
0:01:54.6]} 18... Nf4 {[%clk 0:02:09.7]} 19. Bc2 {[%clk 0:01:31.9]} 19... b6
{[%clk 0:01:43.4]} 20. b4 {[%clk 0:01:28.6]} 20... bxc5 {[%clk 0:01:40.4]} 21.
bxc5 {[%clk 0:01:25.4]} 21... Ba6 {[%clk 0:01:39.5]} 22. Ne5 {[%clk 0:01:21]}
22... Qc7 {[%clk 0:01:33.1]} 23. Qf3 {[%clk 0:01:10.9]} 23... Ne6 {[%clk
0:01:27.1]} 24. Nf5 {[%clk 0:00:49.4]} 24... Nxd4 {[%clk 0:01:20.2]} 25. Nxd4
{[%clk 0:00:49.4]} 25... Rxe5 {[%clk 0:01:20.2]} 26. Nf5 {[%clk 0:00:33.7]}
26... Rbe8 {[%clk 0:01:02.4]} 27. Rxe5 {[%clk 0:00:25.7]} 27... Qxe5 {[%clk
0:01:03.3]} 28. Rb1 {[%clk 0:00:23]} 28... Be2 {[%clk 0:00:52.6]} 29. Qb3 {[%clk
0:00:16.3]} 29... d4 {[%clk 0:00:43.2]} 30. Nd6 {[%clk 0:00:11.4]} 30... Re7
{[%clk 0:00:40.7]} 31. Qb8+ {[%clk 0:00:10.8]} 31... Ne8 {[%clk 0:00:40.7]} 32.
Nxe8 {[%clk 0:00:04.3]} 32... Qxb8 {[%clk 0:00:31.7]} 33. Rxb8 {[%clk 0:00:04]}
33... d3 {[%clk 0:00:31.6]} 34. Bb1 {[%clk 0:00:03.8]} 34... g6 {[%clk
0:00:26.6]} 35. Rd8 {[%clk 0:00:03.9]} 35... d2 {[%clk 0:00:22.6]} 36. Rxd2
{[%clk 0:00:03.4]} 36... Rxe8 {[%clk 0:00:22.4]} 37. f3 {[%clk 0:00:02.6]} 37...
Bc4 {[%clk 0:00:20.7]} 38. Kf2 {[%clk 0:00:03]} 38... Bd5 {[%clk 0:00:20.2]} 39.
Rb2 {[%clk 0:00:03]} 39... Bc4 {[%clk 0:00:17.6]} 40. Rd2 {[%clk 0:00:02.9]}
40... Re5 {[%clk 0:00:17.5]} 41. Rc2 {[%clk 0:00:02.3]} 41... Bd3 {[%clk
0:00:15.6]} 42. Rc1 {[%clk 0:00:01.5]} 42... Bxb1 {[%clk 0:00:15.7]} 43. Rxb1
{[%clk 0:00:02.1]} 43... Rxc5 {[%clk 0:00:16.6]} 44. Rb8+ {[%clk 0:00:02.1]}
44... Kg7 {[%clk 0:00:16.9]} 45. a4 {[%clk 0:00:01.9]} 45... Rc4 {[%clk
0:00:16.7]} 46. Rc8 {[%clk 0:00:01.9]} 46... c5 {[%clk 0:00:16.3]} 47. Rc6
{[%clk 0:00:02]} 47... Kf8 {[%clk 0:00:15.4]} 48. g4 {[%clk 0:00:02.4]} 48...
Ke7 {[%clk 0:00:15.3]} 49. Rc8 {[%clk 0:00:01.9]} 49... Kd7 {[%clk 0:00:14.9]}
50. Rf8 {[%clk 0:00:01.7]} 50... Rxa4 {[%clk 0:00:12.9]} 51. Rxf7+ {[%clk
0:00:02.3]} 51... Ke6 {[%clk 0:00:13.5]} 52. Rc7 {[%clk 0:00:02.7]} 52... c4
{[%clk 0:00:13.6]} 53. Rc6+ {[%clk 0:00:03.1]} 53... Kf7 {[%clk 0:00:13.5]} 54.
Rc7+ {[%clk 0:00:03]} 54... Kf6 {[%clk 0:00:14]} 55. Rc6+ {[%clk 0:00:02.6]}
55... Ke5 {[%clk 0:00:12.9]} 56. Rxg6 {[%clk 0:00:02.6]} 56... Ra2+ {[%clk
0:00:12]} 57. Ke3 {[%clk 0:00:02.9]} 57... Ra3+ {[%clk 0:00:12.6]} 58. Kf2
{[%clk 0:00:03.3]} 58... a4 {[%clk 0:00:11.8]} 59. Rxh6 {[%clk 0:00:02.6]} 59...
Rb3 {[%clk 0:00:11.5]} 60. Rc6 {[%clk 0:00:03.1]} 60... Kd5 {[%clk 0:00:09.8]}
61. Ra6 {[%clk 0:00:03.3]} 61... a3 {[%clk 0:00:10.4]} 62. h4 {[%clk 0:00:03.5]}
62... Rb2+ {[%clk 0:00:09]} 63. Ke1 {[%clk 0:00:03.7]} 63... a2 {[%clk
0:00:09.2]} 64. Kd1 {[%clk 0:00:01.9]} 64... Rb1+ {[%clk 0:00:09.3]} 65. Kc2
{[%clk 0:00:02.1]} 65... a1=Q {[%clk 0:00:10.2]} 66. Rxa1 {[%clk 0:00:02.1]}
66... Rxa1 {[%clk 0:00:11.1]} 67. h5 {[%clk 0:00:02.1]} 67... Ke5 {[%clk
0:00:10.3]} 68. h6 {[%clk 0:00:02.5]} 68... Rh1 {[%clk 0:00:10]} 69. g5 {[%clk
0:00:02.7]} 69... Kf5 {[%clk 0:00:09.9]} 70. f4 {[%clk 0:00:02.3]} 70... Kxf4
{[%clk 0:00:10.5]} 71. g6 {[%clk 0:00:02]} 71... Rxh6 {[%clk 0:00:10.8]} 72. g7
{[%clk 0:00:02.9]} 72... Rg6 {[%clk 0:00:11.4]} 73. g8=Q {[%clk 0:00:03.7]}
73... Rxg8 {[%clk 0:00:11.8]} 0-1

[Event "Late-Titled-Tuesday-Blitz-February-13-2024"]
[Site "Chess.com"]
[Date "2024.02.13"]
[Round "2"]
[White "Baronessa08"]
[Black "rezamahdavi2008"]
[Result "0-1"]
[WhiteElo "2548"]
[BlackElo "2849"]
[TimeControl "180+1"]
[EndTime "14:18:43 PST"]
[Termination "rezamahdavi2008 won by resignation"]

1. d4 {[%clk 0:03:00.9]} 1... d5 {[%clk 0:02:58.6]} 2. Nf3 {[%clk 0:03:00.3]}
2... Nf6 {[%clk 0:02:58]} 3. c4 {[%clk 0:03:00.6]} 3... e6 {[%clk 0:02:58.4]} 4.
Nc3 {[%clk 0:02:59.4]} 4... Nbd7 {[%clk 0:02:56.5]} 5. cxd5 {[%clk 0:02:58.4]}
5... exd5 {[%clk 0:02:55.8]} 6. Bg5 {[%clk 0:02:59]} 6... Bb4 {[%clk 0:02:53.4]}
7. e3 {[%clk 0:02:55.6]} 7... h6 {[%clk 0:02:50.1]} 8. Bf4 {[%clk 0:02:55.3]}
8... g5 {[%clk 0:02:47]} 9. Be5 {[%clk 0:02:46]} 9... Nxe5 {[%clk 0:02:46.7]}
10. Nxe5 {[%clk 0:02:45.1]} 10... c6 {[%clk 0:02:46]} 11. Bd3 {[%clk 0:02:40.2]}
11... Nd7 {[%clk 0:02:46.2]} 12. Nf3 {[%clk 0:02:00.9]} 12... Qe7 {[%clk
0:02:35.9]} 13. O-O {[%clk 0:01:59.2]} 13... g4 {[%clk 0:02:30.7]} 14. Nd2
{[%clk 0:01:59.3]} 14... h5 {[%clk 0:02:21.6]} 15. Re1 {[%clk 0:01:58]} 15...
Nf6 {[%clk 0:02:11]} 16. e4 {[%clk 0:01:53]} 16... dxe4 {[%clk 0:02:00.7]} 17.
Ndxe4 {[%clk 0:01:52.2]} 17... Kf8 {[%clk 0:01:49.9]} 18. Nxf6 {[%clk
0:01:42.2]} 18... Qxf6 {[%clk 0:01:49.5]} 19. Qb3 {[%clk 0:01:33.9]} 19... a5
{[%clk 0:01:18.7]} 20. Bc4 {[%clk 0:01:10.7]} 20... b5 {[%clk 0:01:13.6]} 21.
Bf1 {[%clk 0:00:58.5]} 21... g3 {[%clk 0:01:11.8]} 22. hxg3 {[%clk 0:00:56.6]}
22... h4 {[%clk 0:01:11.5]} 23. Ne4 {[%clk 0:00:45.5]} 23... Qh6 {[%clk
0:01:08]} 24. g4 {[%clk 0:00:43.3]} 24... Bxg4 {[%clk 0:00:50.3]} 25. Re3 {[%clk
0:00:36.9]} 25... h3 {[%clk 0:00:50.2]} 26. gxh3 {[%clk 0:00:35]} 26... Be6
{[%clk 0:00:50.8]} 27. Qc2 {[%clk 0:00:29.2]} 27... Bd5 {[%clk 0:00:50.4]} 28.
Ng3 {[%clk 0:00:25]} 28... Bd6 {[%clk 0:00:50]} 29. Rae1 {[%clk 0:00:23]} 29...
Rg8 {[%clk 0:00:43.7]} 30. Qf5 {[%clk 0:00:20.3]} 30... Rg5 {[%clk 0:00:38.2]}
31. Qd7 {[%clk 0:00:18.5]} 31... Qh4 {[%clk 0:00:31.7]} 32. Qxd6+ {[%clk
0:00:15.3]} 32... Kg7 {[%clk 0:00:27.3]} 33. Bg2 {[%clk 0:00:14.6]} 33... Bxg2
{[%clk 0:00:17]} 34. Kxg2 {[%clk 0:00:15.5]} 34... Rh8 {[%clk 0:00:17.5]} 35.
Rh1 {[%clk 0:00:16]} 35... Rh6 {[%clk 0:00:15.5]} 36. Qd7 {[%clk 0:00:14.3]}
36... Rf6 {[%clk 0:00:14.2]} 37. Rf3 {[%clk 0:00:07.1]} 37... Rgg6 {[%clk
0:00:06.2]} 38. Rxf6 {[%clk 0:00:07.1]} 38... Qxf6 {[%clk 0:00:07.1]} 39. d5
{[%clk 0:00:04.9]} 39... cxd5 {[%clk 0:00:06.3]} 40. Qxd5 {[%clk 0:00:05.2]}
40... Qxb2 {[%clk 0:00:06.9]} 41. h4 {[%clk 0:00:05.2]} 41... Kg8 {[%clk
0:00:05.5]} 42. h5 {[%clk 0:00:05.6]} 42... Rf6 {[%clk 0:00:06.1]} 43. Rf1
{[%clk 0:00:04.7]} 43... a4 {[%clk 0:00:02.3]} 44. Qg5+ {[%clk 0:00:04.7]} 44...
Kf8 {[%clk 0:00:01.9]} 45. h6 {[%clk 0:00:04.5]} 45... Qd4 {[%clk 0:00:01.1]}
46. h7 {[%clk 0:00:03.7]} 46... Rg6 {[%clk 0:00:01.9]} 47. Qh5 {[%clk
0:00:01.6]} 47... Qh8 {[%clk 0:00:02.6]} 48. Re1 {[%clk 0:00:01.3]} 48... Kg7
{[%clk 0:00:03.5]} 49. Qe5+ {[%clk 0:00:01]} 49... f6 {[%clk 0:00:01.3]} 50. Rh1
{[%clk 0:00:01.7]} 50... fxe5 {[%clk 0:00:01.3]} 51. Kf3 {[%clk 0:00:02]} 51...
Kf7 {[%clk 0:00:02.2]} 52. Ke4 {[%clk 0:00:02]} 52... Rf6 {[%clk 0:00:03.1]} 53.
Nf5 {[%clk 0:00:01.9]} 53... Rxf5 {[%clk 0:00:03.3]} 54. Kxf5 {[%clk 0:00:02.8]}
54... Qf6+ {[%clk 0:00:04]} 55. Ke4 {[%clk 0:00:02.9]} 55... Qh8 {[%clk
0:00:03.8]} 56. f3 {[%clk 0:00:02.9]} 56... Qa8+ {[%clk 0:00:03.6]} 57. Kxe5
{[%clk 0:00:02.4]} 57... Qh8+ {[%clk 0:00:04.5]} 58. Ke4 {[%clk 0:00:02.6]}
58... b4 {[%clk 0:00:05.4]} 59. f4 {[%clk 0:00:02.8]} 59... b3 {[%clk
0:00:05.9]} 60. axb3 {[%clk 0:00:03.1]} 60... a3 {[%clk 0:00:06.5]} 61. f5
{[%clk 0:00:03.3]} 61... a2 {[%clk 0:00:06.2]} 62. f6 {[%clk 0:00:04]} 62...
Qa8+ {[%clk 0:00:05.8]} 63. Kf5 {[%clk 0:00:03.5]} 63... Qxh1 {[%clk 0:00:06.7]}
64. h8=Q {[%clk 0:00:03.6]} 64... Qxh8 {[%clk 0:00:07.2]} 0-1

[Event "Late-Titled-Tuesday-Blitz-February-13-2024"]
[Site "Chess.com"]
[Date "2024.02.13"]
[Round "2"]
[White "besarquis"]
[Black "Bugcrusher"]
[Result "0-1"]
[WhiteElo "2150"]
[BlackElo "2463"]
[TimeControl "180+1"]
[EndTime "14:18:43 PST"]
[Termination "Bugcrusher won on time"]

1. e4 {[%clk 0:02:57]} 1... c6 {[%clk 0:02:59.4]} 2. Nc3 {[%clk 0:02:53.3]} 2...
d5 {[%clk 0:02:58.5]} 3. Nf3 {[%clk 0:02:53]} 3... dxe4 {[%clk 0:02:58.7]} 4.
Nxe4 {[%clk 0:02:52.7]} 4... Nf6 {[%clk 0:02:59.6]} 5. Nxf6+ {[%clk 0:02:50.3]}
5... exf6 {[%clk 0:02:59.5]} 6. d4 {[%clk 0:02:49.3]} 6... Bd6 {[%clk
0:02:58.7]} 7. Bd3 {[%clk 0:02:49.3]} 7... O-O {[%clk 0:02:58.5]} 8. O-O {[%clk
0:02:49]} 8... Bg4 {[%clk 0:02:48.6]} 9. h3 {[%clk 0:02:48.4]} 9... Bh5 {[%clk
0:02:48.4]} 10. Re1 {[%clk 0:02:47.4]} 10... Nd7 {[%clk 0:02:48]} 11. g4 {[%clk
0:02:41]} 11... Bg6 {[%clk 0:02:47.7]} 12. Nh4 {[%clk 0:02:41.1]} 12... Rc8
{[%clk 0:02:42.8]} 13. Nf5 {[%clk 0:02:29.4]} 13... Bxf5 {[%clk 0:02:35.5]} 14.
Bxf5 {[%clk 0:02:29]} 14... Bb8 {[%clk 0:02:34.7]} 15. Qf3 {[%clk 0:02:18.7]}
15... Qc7 {[%clk 0:02:31.3]} 16. Qg2 {[%clk 0:02:17.1]} 16... Rcd8 {[%clk
0:02:25]} 17. Bd2 {[%clk 0:02:08.2]} 17... Nb6 {[%clk 0:02:24.2]} 18. Bb4 {[%clk
0:01:49.3]} 18... Rfe8 {[%clk 0:02:14.4]} 19. b3 {[%clk 0:01:45.2]} 19... Nd5
{[%clk 0:02:13.7]} 20. Bd2 {[%clk 0:01:39.2]} 20... Nf4 {[%clk 0:02:08.2]} 21.
Qf3 {[%clk 0:01:38.9]} 21... Ne2+ {[%clk 0:01:49.2]} 22. Rxe2 {[%clk 0:01:23.7]}
22... Rxe2 {[%clk 0:01:48.4]} 23. Ba5 {[%clk 0:00:37.2]} 23... Qh2+ {[%clk
0:01:33.6]} 24. Kf1 {[%clk 0:00:37.3]} 24... Rde8 {[%clk 0:01:33.5]} 25. Bd3
{[%clk 0:00:37.2]} 25... R2e7 {[%clk 0:01:16.6]} 26. Bd2 {[%clk 0:00:36.9]}
26... Qd6 {[%clk 0:01:06.2]} 27. Be3 {[%clk 0:00:35.1]} 27... Bc7 {[%clk
0:00:59.4]} 28. Rd1 {[%clk 0:00:33.5]} 28... Bb6 {[%clk 0:00:57.2]} 29. Bc4
{[%clk 0:00:32.3]} 29... Bc7 {[%clk 0:00:50.5]} 30. Bc1 {[%clk 0:00:29.3]} 30...
a6 {[%clk 0:00:47.2]} 31. a4 {[%clk 0:00:29.1]} 31... b5 {[%clk 0:00:46.3]} 32.
axb5 {[%clk 0:00:29.1]} 32... cxb5 {[%clk 0:00:45.4]} 33. Bd3 {[%clk 0:00:28.2]}
33... Ba5 {[%clk 0:00:41.7]} 34. Bf5 {[%clk 0:00:27.7]} 34... Re1+ {[%clk
0:00:40]} 35. Kg2 {[%clk 0:00:25.3]} 35... Rxd1 {[%clk 0:00:37.6]} 36. Qxd1
{[%clk 0:00:25.4]} 36... Bc7 {[%clk 0:00:36.3]} 37. Qf3 {[%clk 0:00:18.7]} 37...
Qxd4 {[%clk 0:00:36]} 38. Be3 {[%clk 0:00:16.9]} 38... Qd6 {[%clk 0:00:33.8]}
39. Kf1 {[%clk 0:00:15.1]} 39... a5 {[%clk 0:00:32.1]} 40. Bd3 {[%clk
0:00:15.3]} 40... a4 {[%clk 0:00:31]} 41. Qf5 {[%clk 0:00:15.5]} 41... g6 {[%clk
0:00:30.2]} 42. Qxb5 {[%clk 0:00:15.7]} 42... a3 {[%clk 0:00:28.7]} 43. Qxe8+
{[%clk 0:00:15.5]} 43... Kg7 {[%clk 0:00:28.1]} 44. Qa4 {[%clk 0:00:14.5]} 44...
Bd8 {[%clk 0:00:23.6]} 45. b4 {[%clk 0:00:14.5]} 45... Qh2 {[%clk 0:00:21.1]}
46. Qxa3 {[%clk 0:00:14.4]} 46... Qxh3+ {[%clk 0:00:21.3]} 47. Ke2 {[%clk
0:00:06.9]} 47... Qxg4+ {[%clk 0:00:21.2]} 48. Kd2 {[%clk 0:00:06.9]} 48... Be7
{[%clk 0:00:21.5]} 49. c3 {[%clk 0:00:06.8]} 49... h5 {[%clk 0:00:21]} 50. Qa5
{[%clk 0:00:05.7]} 50... h4 {[%clk 0:00:20.8]} 51. Qd5 {[%clk 0:00:05.5]} 51...
h3 {[%clk 0:00:18.7]} 52. Bc4 {[%clk 0:00:05.7]} 52... Qe6 {[%clk 0:00:11.5]}
53. Qxe6 {[%clk 0:00:04.6]} 53... fxe6 {[%clk 0:00:11.9]} 54. Bxe6 {[%clk
0:00:04.4]} 54... h2 {[%clk 0:00:12.4]} 55. Bd5 {[%clk 0:00:04.3]} 55... f5
{[%clk 0:00:12.7]} 56. Bh1 {[%clk 0:00:02.2]} 56... g5 {[%clk 0:00:12.1]} 57. f4
{[%clk 0:00:02.8]} 57... g4 {[%clk 0:00:11]} 58. b5 {[%clk 0:00:03]} 58... g3
{[%clk 0:00:11]} 59. b6 {[%clk 0:00:03.3]} 59... Bd6 {[%clk 0:00:11.4]} 60. b7
{[%clk 0:00:02.9]} 60... Kg6 {[%clk 0:00:11.9]} 0-1

[Event "Late-Titled-Tuesday-Blitz-February-13-2024"]
[Site "Chess.com"]
[Date "2024.02.13"]
[Round "2"]
[White "TorFredrikKaasen"]
[Black "ahmedkandiliii"]
[Result "0-1"]
[WhiteElo "2791"]
[BlackElo "2555"]
[TimeControl "180+1"]
[EndTime "14:18:44 PST"]
[Termination "ahmedkandiliii won by checkmate"]

1. e4 {[%clk 0:03:00.9]} 1... e5 {[%clk 0:02:59.7]} 2. Nf3 {[%clk 0:03:01]} 2...
Nc6 {[%clk 0:02:59.9]} 3. Bc4 {[%clk 0:03:01.3]} 3... Nf6 {[%clk 0:02:59.1]} 4.
d3 {[%clk 0:03:01.5]} 4... Be7 {[%clk 0:02:58.8]} 5. O-O {[%clk 0:03:01]} 5...
O-O {[%clk 0:02:59.4]} 6. Re1 {[%clk 0:03:01.7]} 6... d6 {[%clk 0:02:59.5]} 7.
a4 {[%clk 0:03:02.3]} 7... Be6 {[%clk 0:02:58.6]} 8. a5 {[%clk 0:02:54.3]} 8...
a6 {[%clk 0:02:55.5]} 9. Nc3 {[%clk 0:02:53.5]} 9... Bxc4 {[%clk 0:02:52.4]} 10.
dxc4 {[%clk 0:02:54.4]} 10... h6 {[%clk 0:02:52.4]} 11. b3 {[%clk 0:02:52.8]}
11... Re8 {[%clk 0:02:45.9]} 12. Nd5 {[%clk 0:02:52.9]} 12... Bf8 {[%clk
0:02:45.3]} 13. Nd2 {[%clk 0:02:48.9]} 13... Nd4 {[%clk 0:02:36]} 14. Nf1 {[%clk
0:02:44.8]} 14... c6 {[%clk 0:02:31.7]} 15. Nxf6+ {[%clk 0:02:40.8]} 15... Qxf6
{[%clk 0:02:30.8]} 16. Bb2 {[%clk 0:02:38.9]} 16... Rad8 {[%clk 0:02:26.3]} 17.
Ne3 {[%clk 0:02:31.7]} 17... Ne6 {[%clk 0:02:06.3]} 18. Qd2 {[%clk 0:02:23.3]}
18... Nf4 {[%clk 0:02:03.8]} 19. Rad1 {[%clk 0:02:15.1]} 19... Qg5 {[%clk
0:01:58.7]} 20. Kh1 {[%clk 0:02:12.7]} 20... d5 {[%clk 0:01:53.8]} 21. exd5
{[%clk 0:01:52.7]} 21... cxd5 {[%clk 0:01:54.7]} 22. cxd5 {[%clk 0:01:52.3]}
22... Rxd5 {[%clk 0:01:53.5]} 23. Qc1 {[%clk 0:01:52.9]} 23... Rxa5 {[%clk
0:01:46.7]} 24. g3 {[%clk 0:01:50.1]} 24... Nh3 {[%clk 0:01:44.1]} 25. Kg2
{[%clk 0:01:49.2]} 25... Nf4+ {[%clk 0:01:41.8]} 26. Kh1 {[%clk 0:01:49.6]}
26... Ng6 {[%clk 0:01:35.6]} 27. Qd2 {[%clk 0:01:37.7]} 27... e4 {[%clk
0:01:18.5]} 28. Nc4 {[%clk 0:01:12]} 28... Qxd2 {[%clk 0:01:11.2]} 29. Rxd2
{[%clk 0:01:12.9]} 29... Rc5 {[%clk 0:01:10]} 30. Rd7 {[%clk 0:01:05.2]} 30...
b5 {[%clk 0:01:07.2]} 31. Ne3 {[%clk 0:01:00.5]} 31... Ne5 {[%clk 0:00:53.6]}
32. Ra7 {[%clk 0:00:51.7]} 32... Nf3 {[%clk 0:00:52.1]} 33. Rd1 {[%clk
0:00:51.2]} 33... Rc6 {[%clk 0:00:49.3]} 34. Rdd7 {[%clk 0:00:48.6]} 34... Bc5
{[%clk 0:00:39.6]} 35. Rxf7 {[%clk 0:00:31]} 35... Bxa7 {[%clk 0:00:38.1]} 36.
Rxg7+ {[%clk 0:00:31.5]} 36... Kf8 {[%clk 0:00:37.7]} 37. Rxa7 {[%clk
0:00:32.4]} 37... Rd8 {[%clk 0:00:33.5]} 38. g4 {[%clk 0:00:20.5]} 38... Rd2
{[%clk 0:00:31.4]} 39. Kg2 {[%clk 0:00:20.6]} 39... Ne1+ {[%clk 0:00:31.4]} 40.
Kg3 {[%clk 0:00:20.9]} 40... Nxc2 {[%clk 0:00:30.9]} 41. Bg7+ {[%clk 0:00:20.8]}
41... Ke8 {[%clk 0:00:29.3]} 42. Nf5 {[%clk 0:00:20.8]} 42... Ne1 {[%clk
0:00:25]} 43. Re7+ {[%clk 0:00:19.8]} 43... Kd8 {[%clk 0:00:24.6]} 44. Rxe4
{[%clk 0:00:20.3]} 44... Rd3+ {[%clk 0:00:24]} 45. Kh4 {[%clk 0:00:16.2]} 45...
Nf3+ {[%clk 0:00:23.6]} 46. Kh5 {[%clk 0:00:16.2]} 46... Ng5 {[%clk 0:00:23]}
47. Re3 {[%clk 0:00:05.6]} 47... Rxe3 {[%clk 0:00:21.5]} 48. Nxe3 {[%clk
0:00:06.5]} 48... Ne4 {[%clk 0:00:20.5]} 49. Bxh6 {[%clk 0:00:05.7]} 49... Nxf2
{[%clk 0:00:20.3]} 50. Bg5+ {[%clk 0:00:05.1]} 50... Kc8 {[%clk 0:00:19.6]} 51.
Bf4 {[%clk 0:00:05.7]} 51... Ne4 {[%clk 0:00:19.6]} 52. g5 {[%clk 0:00:05.7]}
52... a5 {[%clk 0:00:19.8]} 53. g6 {[%clk 0:00:06.2]} 53... a4 {[%clk
0:00:20.1]} 54. bxa4 {[%clk 0:00:05.8]} 54... bxa4 {[%clk 0:00:19.7]} 55. g7
{[%clk 0:00:06.7]} 55... Nf6+ {[%clk 0:00:19.7]} 56. Kg5 {[%clk 0:00:07]} 56...
a3 {[%clk 0:00:20.3]} 57. Be5 {[%clk 0:00:07.5]} 57... Ng8 {[%clk 0:00:20.5]}
58. Nf5 {[%clk 0:00:08]} 58... a2 {[%clk 0:00:20.2]} 59. h4 {[%clk 0:00:07.3]}
59... Rc5 {[%clk 0:00:20.5]} 60. Bd4 {[%clk 0:00:06.7]} 60... Rd5 {[%clk
0:00:19.1]} 61. Bc3 {[%clk 0:00:05.2]} 61... Ne7 {[%clk 0:00:19.2]} 62. g8=Q+
{[%clk 0:00:02.6]} 62... Nxg8 {[%clk 0:00:18.8]} 63. Kg6 {[%clk 0:00:02.9]}
63... Kd7 {[%clk 0:00:18.1]} 64. h5 {[%clk 0:00:03]} 64... Ne7+ {[%clk
0:00:18.1]} 65. Nxe7 {[%clk 0:00:03]} 65... Kxe7 {[%clk 0:00:19]} 66. h6 {[%clk
0:00:03.5]} 66... Rd6+ {[%clk 0:00:18.8]} 67. Kg7 {[%clk 0:00:03.5]} 67... Rd3
{[%clk 0:00:19.5]} 68. Bb2 {[%clk 0:00:03.7]} 68... Rg3+ {[%clk 0:00:19.4]} 69.
Kh7 {[%clk 0:00:04]} 69... Kf7 {[%clk 0:00:19.8]} 70. Be5 {[%clk 0:00:04.1]}
70... Rg1 {[%clk 0:00:19.4]} 71. Kh8 {[%clk 0:00:04.6]} 71... a1=Q {[%clk
0:00:19.2]} 72. Bxa1 {[%clk 0:00:04.8]} 72... Rxa1 {[%clk 0:00:19.3]} 73. Kh7
{[%clk 0:00:05.7]} 73... Ra7 {[%clk 0:00:18.9]} 74. Kh8 {[%clk 0:00:05.9]} 74...
Kg6 {[%clk 0:00:19.1]} 75. Kg8 {[%clk 0:00:06.1]} 75... Ra8# {[%clk 0:00:19.3]}
0-1